fUST/lending_fUST_20240730
["ID","MTS","AMOUNT","RATE_DAILY","PERIOD"]
[333662410,1722321047589,-500.0,0.00013698,2]
[333662411,1722321047604,-509.48766753,0.00013698,2]
[333662412,1722321047619,-508.70336244,0.00013698,2]
[333662413,1722321047636,-232.56848709,0.00013698,2]
[333662414,1722321047653,-500.0,0.00013698,2]
[333662415,1722321047668,-500.0,0.00013698,2]
[333662416,1722321047685,-504.3777284,0.00013698,2]
[333662417,1722321047699,-500.0,0.00013698,2]
[333662418,1722321047713,-500.0,0.00013698,2]
[333662419,1722321047729,-264.35422318,0.00013698,2]
[333662420,1722321047746,-506.85140986,0.00013698,2]
[333662421,1722321047765,-502.59289334,0.00013698,2]
[333662422,1722321047780,-502.77796771,0.00013698,2]
[333662423,1722321047797,-503.14079257,0.00013698,2]
[333662424,1722321047813,-502.11127882,0.00013698,2]
[333662425,1722321047831,-517.49677819,0.00013698,2]
[333662426,1722321047847,-500.0,0.00013698,2]
[333662427,1722321047861,-232.47046303,0.00013698,2]
[333662428,1722321047876,-500.0,0.00013698,2]
[333662429,1722321047891,-486.33309984,0.00013698,2]
[333662430,1722321047907,-500.0,0.00013698,2]
[333662431,1722321047921,-500.0,0.00013698,2]
[333662432,1722321047948,-500.0,0.00013698,2]
[333662433,1722321047963,-365.94979163,0.00013698,2]
[333662434,1722321047978,-422.35362005,0.00013698,2]
[333662435,1722321047993,-503.0194378,0.00013698,2]
[333662436,1722321048009,-504.31424889,0.00013698,2]
[333662437,1722321048025,-510.24573408,0.00013698,2]
[333662438,1722321048040,-500.0,0.00013698,2]
[333662439,1722321048055,-389.29172307,0.00013698,2]
[333662440,1722321048072,-510.51536164,0.00013698,2]
[333662441,1722321048158,-500.0,0.00013698,2]
[333662442,1722321048200,-503.25316555,0.00013698,2]
[333662443,1722321048211,-503.53013191,0.00013698,2]
[333662444,1722321048220,-472.69516462,0.00013698,2]
[333662445,1722321049302,-360.03102562,0.00012677,2]
[333662446,1722321049314,-226.64469908,0.00012844,2]
[333662447,1722321049379,-2335.74200014,0.00012844,2]
[333662448,1722321049391,-1092.27704253,0.00012844,2]
[333662449,1722321049400,-260.8,0.0001288,2]
[333662450,1722321049412,-369.805888,0.0001288,2]
[333662451,1722321049423,-369.805888,0.0001289,2]
[333662452,1722321049433,-151.0,0.0001289,2]
[333662453,1722321049444,-151.0,0.0001289,2]
[333662454,1722321049455,-151.0,0.0001289,2]
[333662455,1722321049466,-369.805888,0.0001289,2]
[333662456,1722321049477,-369.805888,0.0001289,2]
[333662457,1722321049487,-369.805888,0.0001289,2]
[333662458,1722321049497,-369.805888,0.0001289,2]
[333662459,1722321049509,-369.805888,0.0001289,2]
[333662460,1722321049519,-369.805888,0.0001289,2]
[333662461,1722321049530,-369.805888,0.0001289,2]
[333662462,1722321049540,-27.30483538,0.00013698,2]
[333662463,1722321049552,-521.36540071,0.00013698,2]
[333662464,1722321049562,-500.0,0.00013698,2]
[333662465,1722321049571,-528.38757357,0.00013698,2]
[333662466,1722321049582,-504.06270913,0.00013698,2]
[333662467,1722321049591,-500.0,0.00013698,2]
[333662468,1722321049601,-500.0,0.00013698,2]
[333662469,1722321049612,-500.0,0.00013698,2]
[333662470,1722321049622,-500.0,0.00013698,2]
[333662471,1722321049631,-9.21678118,0.00013698,2]
[333662472,1722321049644,-613.69053215,0.00013698,2]
[333662473,1722321049654,-513.10593296,0.00013698,2]
[333662474,1722321049664,-108.26353489,0.00013698,2]
[333662478,1722321342387,-191.52899977,8.96e-05,2]
[333662479,1722321342422,-200.0,8.96e-05,2]
[333662480,1722321342459,-200.0,8.969e-05,2]
[333662481,1722321342494,-300.0,9.998e-05,2]
[333662482,1722321342532,-155.10545956,9.999e-05,2]
[333662483,1722321342566,-155.2035076,9.999e-05,2]
[333662484,1722321342600,-160.25326411,9.999e-05,2]
[333662485,1722321342633,-522.86776842,9.999e-05,2]
[333662486,1722321342665,-664.52290182,9.999e-05,2]
[333662487,1722321342843,-154.85948304,9.999e-05,2]
[333662488,1722321342869,-309.3349299,9.999e-05,2]
[333662489,1722321342894,-282.05564926,0.0001,2]
[333662490,1722321342917,-232.40417447,0.0001,2]
[333662492,1722321350523,273.37336231,9.9e-05,2]
[333662493,1722321358342,273.37336231,9.9e-05,2]
[333662495,1722321376946,200.0,0.0001,2]
[333662496,1722321379701,155.31254566,9.9e-05,2]
[333662497,1722321380258,273.37336231,9.9e-05,2]
[333662498,1722321381385,155.15168842,9.9e-05,2]
[333662499,1722321386125,15403.18715867,9.9e-05,2]
[333662500,1722321387529,2108.0144235,9.9e-05,2]
[333662501,1722321388816,273.37336231,9.9e-05,2]
[333662502,1722321388848,154.98939785,9.9e-05,2]
[333662503,1722321390767,4710.72234215,9.9e-05,2]
[333662504,1722321391690,9856.69147628,9.9e-05,2]
[333662505,1722321391732,154.71377951,9.9e-05,2]
[333662506,1722321396965,273.37336231,9.9e-05,2]
[333662507,1722321398217,1626.57901453,9.9e-05,2]
[333662508,1722321404977,273.37336231,9.9e-05,2]
[333662509,1722321406493,157.32619577,9.9e-05,2]
[333662510,1722321412966,273.37336231,9.9e-05,2]
[333662511,1722321420983,273.37336231,9.9e-05,2]
[333662512,1722321429688,273.37336231,9.9e-05,2]
[333662513,1722321437549,273.37336231,9.9e-05,2]
[333662514,1722321442532,200.0,0.0001,2]
[333662515,1722321442994,10463.0,0.00027,120]
[333662516,1722321445679,273.37336231,9.9e-05,2]
[333662517,1722321454189,273.37336231,9.9e-05,2]
[333662518,1722321462217,273.37336231,9.9e-05,2]
[333662519,1722321470167,273.37336231,9.9e-05,2]
[333662520,1722321478391,273.37336231,9.9e-05,2]
[333662521,1722321483545,2108.0144235,9.9e-05,2]
[333662522,1722321485833,3896.63087026,9.9e-05,2]
[333662523,1722321486900,273.37336231,9.9e-05,2]
[333662524,1722321488081,271.18563857,9.9e-05,2]
[333662525,1722321495061,273.37336231,9.9e-05,2]
[333662526,1722321500232,1654.18759849,9.9e-05,2]
[333662527,1722321503045,273.37336231,9.9e-05,2]
[333662528,1722321511794,273.37336231,9.9e-05,2]
[333662529,1722321512578,200.0,0.0001,2]
[333662530,1722321516599,157.32619577,9.9e-05,2]
[333662531,1722321519778,273.37336231,9.9e-05,2]
[333662532,1722321530087,273.37336231,9.9e-05,2]
[333662533,1722321537771,273.37336231,9.9e-05,2]
[333662534,1722321547020,273.37336231,9.9e-05,2]
[333662535,1722321555755,273.37336231,9.9e-05,2]
[333662536,1722321565245,273.37336231,9.9e-05,2]
[333662537,1722321573125,273.37336231,9.9e-05,2]
[333662538,1722321581501,273.37336231,9.9e-05,2]
[333662539,1722321583535,2108.0144235,9.9e-05,2]
[333662540,1722321588065,200.0,0.0001,2]
[333662541,1722321590000,273.37336231,9.9e-05,2]
[333662542,1722321598706,273.37336231,9.9e-05,2]
[333662543,1722321608127,273.37336231,9.9e-05,2]
[333662544,1722321616438,273.37336231,9.9e-05,2]
[333662545,1722321622522,278.9509965,0.0001,2]
[333662546,1722321625118,273.37336231,9.9e-05,2]
[333662547,1722321633313,273.37336231,9.9e-05,2]
[333662548,1722321641788,273.37336231,9.9e-05,2]
[333662549,1722321650645,273.37336231,9.9e-05,2]
[333662550,1722321652601,200.0,0.0001,2]
[333662551,1722321659165,273.37336231,9.9e-05,2]
[333662552,1722321667276,273.37336231,9.9e-05,2]
[333662553,1722321675210,273.37336231,9.9e-05,2]
[333662554,1722321678633,689.13952992,9.9e-05,2]
[333662555,1722321691126,273.37336231,9.9e-05,2]
[333662556,1722321699059,273.37336231,9.9e-05,2]
[333662557,1722321708359,273.37336231,9.9e-05,2]
[333662558,1722321716058,273.37336231,9.9e-05,2]
[333662559,1722321716741,200.0,0.0001,2]
[333662560,1722321724216,273.37336231,9.9e-05,2]
[333662561,1722321732157,273.37336231,9.9e-05,2]
[333662562,1722321740344,273.37336231,9.9e-05,2]
[333662563,1722321749105,273.37336231,9.9e-05,2]
[333662564,1722321757924,273.37336231,9.9e-05,2]
[333662565,1722321765737,273.37336231,9.9e-05,2]
[333662566,1722321773850,273.37336231,9.9e-05,2]
[333662567,1722321781808,273.37336231,9.9e-05,2]
[333662568,1722321788128,200.0,0.0001,2]
[333662569,1722321790050,273.37336231,9.9e-05,2]
[333662570,1722321797999,273.37336231,9.9e-05,2]
[333662571,1722321806183,273.37336231,9.9e-05,2]
[333662572,1722321814055,273.37336231,9.9e-05,2]
[333662573,1722321822238,273.37336231,9.9e-05,2]
[333662574,1722321830213,273.37336231,9.9e-05,2]
[333662575,1722321838992,273.37336231,9.9e-05,2]
[333662576,1722321847526,273.37336231,9.9e-05,2]
[333662577,1722321852533,200.0,0.0001,2]
[333662578,1722321855649,157.26625162,9.999e-05,2]
[333662579,1722321855693,273.37336231,9.9e-05,2]
[333662580,1722321863496,273.37336231,9.9e-05,2]
[333662581,1722321872126,273.37336231,9.9e-05,2]
[333662582,1722321880654,273.37336231,9.9e-05,2]
[333662583,1722321889200,273.37336231,9.9e-05,2]
[333662584,1722321897717,273.37336231,9.9e-05,2]
[333662585,1722321905882,273.37336231,9.9e-05,2]
[333662586,1722321912506,200.0,0.0001,2]
[333662587,1722321914433,273.37336231,9.9e-05,2]
[333662588,1722321922658,273.37336231,9.9e-05,2]
[333662589,1722321931110,273.37336231,9.9e-05,2]
[333662590,1722321939206,273.37336231,9.9e-05,2]
[333662591,1722321948012,273.37336231,9.9e-05,2]
[333662592,1722321956355,273.37336231,9.9e-05,2]
[333662593,1722321964243,273.37336231,9.9e-05,2]
[333662594,1722321972490,273.37336231,9.9e-05,2]
[333662595,1722321980637,273.37336231,9.9e-05,2]
[333662596,1722321986956,200.0,0.0001,2]
[333662597,1722321989060,273.37336231,9.9e-05,2]
[333662598,1722321997046,273.37336231,9.9e-05,2]
[333662599,1722322008003,273.37336231,9.9e-05,2]
[333662600,1722322016439,273.37336231,9.9e-05,2]
[333662601,1722322024911,273.37336231,9.9e-05,2]
[333662602,1722322033959,273.37336231,9.9e-05,2]
[333662603,1722322041933,273.37336231,9.9e-05,2]
[333662604,1722322050151,273.37336231,9.9e-05,2]
[333662605,1722322051407,586.73091202,9.999e-05,2]
[333662606,1722322052868,200.0,0.0001,2]
[333662607,1722322059528,273.37336231,9.9e-05,2]
[333662608,1722322068382,273.37336231,9.9e-05,2]
[333662609,1722322076500,273.37336231,9.9e-05,2]
[333662610,1722322084409,273.37336231,9.9e-05,2]
[333662611,1722322093095,273.37336231,9.9e-05,2]
[333662612,1722322101045,273.37336231,9.9e-05,2]
[333662613,1722322109153,273.37336231,9.9e-05,2]
[333662614,1722322112574,200.0,0.0001,2]
[333662615,1722322117350,273.37336231,9.9e-05,2]
[333662616,1722322125560,273.37336231,9.9e-05,2]
[333662617,1722322134484,273.37336231,9.9e-05,2]
[333662618,1722322142671,273.37336231,9.9e-05,2]
[333662619,1722322150512,273.37336231,9.9e-05,2]
[333662620,1722322158847,273.37336231,9.9e-05,2]
[333662621,1722322167364,273.37336231,9.9e-05,2]
[333662622,1722322175450,273.37336231,9.9e-05,2]
[333662623,1722322183569,273.37336231,9.9e-05,2]
[333662624,1722322192449,200.0,0.0001,2]
[333662625,1722322192800,273.37336231,9.9e-05,2]
[333662626,1722322193630,224.13908649,9.999e-05,2]
[333662627,1722322201131,273.37336231,9.9e-05,2]
[333662628,1722322209308,273.37336231,9.9e-05,2]
[333662629,1722322217102,273.37336231,9.9e-05,2]
[333662630,1722322226006,273.37336231,9.9e-05,2]
[333662685,1722322232602,-171.7341727,0.00011284,2]
[333662686,1722322232612,-400.0,0.0001137,2]
[333662688,1722322232621,-212.786604,0.00011586,2]
[333662690,1722322232631,-1000.0,0.00012,12]
[333662693,1722322232643,-459.45606609,0.00012119,2]
[333662695,1722322232654,-212.786604,0.0001219,2]
[333662697,1722322232664,-300.0,0.00012687,2]
[333662698,1722322232674,-500.0,0.00012688,2]
[333662700,1722322232683,-500.0,0.00012688,2]
[333662702,1722322232692,-500.0,0.00012688,2]
[333662704,1722322232702,-500.0,0.00012688,2]
[333662705,1722322232711,-500.0,0.00012688,2]
[333662707,1722322232720,-500.0,0.00012688,2]
[333662709,1722322232729,-500.0,0.00012688,2]
[333662711,1722322232739,-500.0,0.00012688,2]
[333662713,1722322232749,-500.0,0.00012688,2]
[333662715,1722322232759,-195.82,0.00012688,2]
[333662718,1722322232778,-500.0,0.00012688,2]
[333662720,1722322232790,-500.0,0.00012688,2]
[333662723,1722322232800,-500.0,0.00012688,2]
[333662725,1722322232810,-500.0,0.00012688,2]
[333662727,1722322232820,-500.0,0.00012688,2]
[333662729,1722322232830,-500.0,0.00012688,2]
[333662731,1722322232842,-500.0,0.00012688,2]
[333662733,1722322232852,-500.0,0.00012688,2]
[333662735,1722322232864,-500.0,0.00012688,2]
[333662737,1722322232875,-500.0,0.00012688,2]
[333662739,1722322232884,-500.0,0.00012688,2]
[333662741,1722322232895,-500.0,0.00012688,2]
[333662743,1722322232905,-500.0,0.00012688,2]
[333662745,1722322232915,-283.45,0.00012688,2]
[333662747,1722322232925,-500.0,0.00012698,2]
[333662749,1722322232935,-500.0,0.00012698,2]
[333662751,1722322232945,-500.0,0.00012698,2]
[333662753,1722322232955,-500.0,0.00012698,2]
[333662756,1722322232966,-500.0,0.00012698,2]
[333662758,1722322232976,-500.0,0.00012698,2]
[333662760,1722322232986,-500.0,0.00012698,2]
[333662762,1722322232996,-500.0,0.00012698,2]
[333662764,1722322233007,-500.0,0.00012698,2]
[333662766,1722322233018,-500.0,0.00012698,2]
[333662768,1722322233028,-500.0,0.00012698,2]
[333662770,1722322233038,-500.0,0.00012698,2]
[333662772,1722322233050,-500.0,0.00012698,2]
[333662774,1722322233060,-500.0,0.00012698,2]
[333662776,1722322233071,-500.0,0.00012698,2]
[333662778,1722322233081,-500.0,0.00012698,2]
[333662780,1722322233092,-500.0,0.00012698,2]
[333662782,1722322233101,-500.0,0.00012698,2]
[333662784,1722322233111,-500.0,0.00012698,2]
[333662787,1722322233122,-500.0,0.00012698,2]
[333662789,1722322233132,-500.0,0.00012698,2]
[333662791,1722322233142,-500.0,0.00012698,2]
[333662793,1722322233152,-500.0,0.00012698,2]
[333662795,1722322233165,-500.0,0.00012698,2]
[333662797,1722322233175,-500.0,0.00012698,2]
[333662799,1722322233185,-500.0,0.00012698,2]
[333662801,1722322233195,-500.0,0.00012698,2]
[333662803,1722322233206,-500.0,0.00012698,2]
[333662805,1722322233216,-642.7,0.00012698,2]
[333662808,1722322233228,-200.0,0.00012986,2]
[333662810,1722322233239,-1000.0,0.00013,13]
[333662812,1722322233251,-7967.31785098,0.00013,2]
[333662814,1722322233263,-600.0,0.00013147,2]
[333662816,1722322233273,-150.513,0.00013369,2]
[333662818,1722322233283,-508.272,0.00013369,2]
[333662820,1722322233295,-1410.0,0.00013369,2]
[333662822,1722322233305,-312.3112718,0.00013425,2]
[333662824,1722322233315,-301.5693141,0.00013425,2]
[333662826,1722322233326,-220.4228901,0.00013425,2]
[333662828,1722322233336,-294.1142903,0.00013425,2]
[333662830,1722322233346,-153.0,0.00013425,2]
[333662832,1722322233356,-294.1142903,0.00013425,2]
[333662834,1722322233367,-153.0,0.00013425,2]
[333662836,1722322233376,-153.0,0.00013425,2]
[333662838,1722322233387,-5308.80312147,0.00013585,2]
[333662840,1722322233397,-863.47159332,0.00013588,2]
[333662842,1722322233407,-863.47159331,0.00013591,2]
[333662844,1722322233418,-863.47159331,0.00013594,2]
[333662846,1722322233427,-863.47159331,0.00013596,2]
[333662848,1722322233437,-36376.72070246,0.00013598,2]
[333662894,1722322233872,273.37336231,9.9e-05,2]
[333662991,1722322240566,-44403.89200011,0.00013598,2]
[333662993,1722322240577,-863.47159331,0.00013599,2]
[333662995,1722322240587,-300.0,0.000136,4]
[333662996,1722322240598,-150.112233,0.000136,2]
[333662997,1722322240609,-155.0,0.0001362,2]
[333662998,1722322240621,-294.736654,0.00013655,2]
[333662999,1722322240632,-157.341378,0.00013655,2]
[333663000,1722322240643,-198.660837,0.00013655,2]
[333663001,1722322240653,-161.508915,0.00013655,2]
[333663002,1722322240665,-201.886146,0.00013655,2]
[333663003,1722322240675,-191.255164,0.00013655,2]
[333663004,1722322240685,-367.69126021,0.00013687,2]
[333663005,1722322240696,-447.05846208,0.00013698,2]
[333663006,1722322240706,-507.51126654,0.00013698,2]
[333663007,1722322240716,-504.15097298,0.00013698,2]
[333663008,1722322240726,-503.80569363,0.00013698,2]
[333663009,1722322240735,-508.36367782,0.00013698,2]
[333663010,1722322240745,-500.0,0.00013698,2]
[333663011,1722322240755,-500.0,0.00013698,2]
[333663012,1722322240764,-500.0,0.00013698,2]
[333663013,1722322240774,-328.07271713,0.00013698,2]
[333663014,1722322240784,-507.05338622,0.00013698,2]
[333663015,1722322240793,-1646.13,0.00013698,2]
[333663016,1722322240803,-500.0,0.00013698,2]
[333663017,1722322240812,-500.0,0.00013698,2]
[333663018,1722322240823,-500.0,0.00013698,2]
[333663019,1722322240832,-500.0,0.00013698,2]
[333663020,1722322240842,-507.94500675,0.00013698,2]
[333663021,1722322240852,-503.40766741,0.00013698,2]
[333663022,1722322240862,-529.39988261,0.00013698,2]
[333663023,1722322240871,-504.65315304,0.00013698,2]
[333663024,1722322240881,-505.50183349,0.00013698,2]
[333663025,1722322240891,-504.6694385,0.00013698,2]
[333663026,1722322240901,-502.59275407,0.00013698,2]
[333663027,1722322240910,-504.81039406,0.00013698,2]
[333663028,1722322240923,-500.0,0.00013698,2]
[333663029,1722322240932,-500.50432204,0.00013698,2]
[333663030,1722322240942,-500.0,0.00013698,2]
[333663031,1722322240952,-500.0,0.00013698,2]
[333663032,1722322240962,-238.8963325,0.00013698,2]
[333663033,1722322240971,-515.72241009,0.00013698,2]
[333663034,1722322240981,-500.0,0.00013698,2]
[333663035,1722322240992,-500.0,0.00013698,2]
[333663036,1722322241002,-500.0,0.00013698,2]
[333663037,1722322241011,-500.0,0.00013698,2]
[333663038,1722322241021,-500.0,0.00013698,2]
[333663039,1722322241031,-500.0,0.00013698,2]
[333663040,1722322241040,-500.0,0.00013698,2]
[333663041,1722322241050,-500.0,0.00013698,2]
[333663042,1722322241060,-500.0,0.00013698,2]
[333663043,1722322241070,-500.0,0.00013698,2]
[333663044,1722322241079,-500.0,0.00013698,2]
[333663045,1722322241090,-500.0,0.00013698,2]
[333663046,1722322241101,-406.15799896,0.00013698,2]
[333663047,1722322241110,-284.31059927,0.00013698,2]
[333663048,1722322241120,-500.0,0.00013698,2]
[333663049,1722322241131,-501.04442177,0.00013698,2]
[333663050,1722322241141,-500.0,0.00013698,2]
[333663051,1722322241150,-500.0,0.00013698,2]
[333663052,1722322241160,-500.0,0.00013698,2]
[333663053,1722322241171,-500.0,0.00013698,2]
[333663054,1722322241183,-500.0,0.00013698,2]
[333663055,1722322241195,-500.0,0.00013698,2]
[333663056,1722322241206,-507.33011194,0.00013698,2]
[333663057,1722322241216,-500.0,0.00013698,2]
[333663058,1722322241226,-500.0,0.00013698,2]
[333663059,1722322241238,-500.0,0.00013698,2]
[333663060,1722322241249,-501.40054139,0.00013698,2]
[333663061,1722322241263,-500.0,0.00013698,2]
[333663062,1722322241273,-293.45294679,0.00013698,2]
[333663063,1722322241282,-500.0,0.00013698,2]
[333663064,1722322241292,-624.73544997,0.00013698,2]
[333663065,1722322241375,-504.36851892,0.00013698,2]
[333663066,1722322241385,-500.0,0.00013698,2]
[333663067,1722322241395,-500.0,0.00013698,2]
[333663068,1722322241404,-500.0,0.00013698,2]
[333663069,1722322241414,-504.50288948,0.00013698,2]
[333663070,1722322241424,-598.64660512,0.00013698,2]
[333663071,1722322241433,-500.0,0.00013698,2]
[333663072,1722322241443,-504.77377842,0.00013698,2]
[333663073,1722322241452,-501.6317762,0.00013698,2]
[333663074,1722322241462,-500.0,0.00013698,2]
[333663075,1722322241471,-613.46410381,0.00013698,2]
[333663076,1722322241481,-500.0,0.00013698,2]
[333663077,1722322241490,-500.0,0.00013698,2]
[333663078,1722322241500,-500.0,0.00013698,2]
[333663079,1722322241510,-500.0,0.00013698,2]
[333663080,1722322241519,-636.32696466,0.00013698,2]
[333663081,1722322241529,-500.0,0.00013698,2]
[333663082,1722322241539,-502.89503649,0.00013698,2]
[333663083,1722322241549,-544.66671704,0.00013698,2]
[333663084,1722322241558,-500.0,0.00013698,2]
[333663085,1722322241568,-500.0,0.00013698,2]
[333663086,1722322241578,-500.0,0.00013698,2]
[333663087,1722322241587,-500.0,0.00013698,2]
[333663088,1722322241599,-500.0,0.00013698,2]
[333663089,1722322241609,-500.0,0.00013698,2]
[333663090,1722322241618,-500.0,0.00013698,2]
[333663091,1722322241628,-500.0,0.00013698,2]
[333663092,1722322241638,-500.0,0.00013698,2]
[333663093,1722322241649,-500.0,0.00013698,2]
[333663094,1722322241662,-500.0,0.00013698,2]
[333663095,1722322241671,-500.0,0.00013698,2]
[333663096,1722322241681,-500.0,0.00013698,2]
[333663097,1722322241690,-500.0,0.00013698,2]
[333663098,1722322241699,-500.0,0.00013698,2]
[333663099,1722322241709,-500.0,0.00013698,2]
[333663100,1722322241718,-500.0,0.00013698,2]
[333663101,1722322241728,-500.0,0.00013698,2]
[333663102,1722322241737,-500.0,0.00013698,2]
[333663103,1722322241747,-500.0,0.00013698,2]
[333663104,1722322241757,-499.53,0.00013698,2]
[333663105,1722322241766,-500.0,0.00013698,2]
[333663106,1722322241776,-500.0,0.00013698,2]
[333663107,1722322241785,-500.0,0.00013698,2]
[333663108,1722322241795,-500.0,0.00013698,2]
[333663109,1722322241804,-165.0,0.00013698,2]
[333663110,1722322241814,-556.28876023,0.00013698,2]
[333663111,1722322241825,-500.0,0.00013698,2]
[333663112,1722322241836,-252.7952662,0.00013698,2]
[333663113,1722322241848,-500.0,0.00013698,2]
[333663114,1722322241858,-500.0,0.00013698,2]
[333663115,1722322241868,-500.0,0.00013698,2]
[333663116,1722322241877,-303.38219212,0.00013698,2]
[333663117,1722322241887,-500.0,0.00013698,2]
[333663118,1722322241898,-505.57368615,0.00013698,2]
[333663119,1722322241908,-504.46961592,0.00013698,2]
[333663120,1722322241918,-505.83399773,0.00013698,2]
[333663121,1722322241930,-501.31137635,0.00013698,2]
[333663122,1722322241940,-500.0,0.00013698,2]
[333663123,1722322241951,-500.0,0.00013698,2]
[333663124,1722322241961,-500.0,0.00013698,2]
[333663125,1722322241971,-502.382924,0.00013698,2]
[333663126,1722322241981,-500.0,0.00013698,2]
[333663127,1722322241990,-505.38573073,0.00013698,2]
[333663128,1722322242000,-509.85931349,0.00013698,2]
[333663129,1722322242010,-502.82336832,0.00013698,2]
[333663130,1722322242020,-555.93159638,0.00013698,2]
[333663131,1722322242032,-280.07178987,0.00013698,2]
[333663132,1722322242044,-500.0,0.00013698,2]
[333663133,1722322242056,-504.66779833,0.00013698,2]
[333663134,1722322242067,-500.0,0.00013698,2]
[333663135,1722322242076,-500.0,0.00013698,2]
[333663136,1722322242086,-500.0,0.00013698,2]
[333663137,1722322242097,-500.0,0.00013698,2]
[333663138,1722322242107,-500.0,0.00013698,2]
[333663139,1722322242117,-505.56926121,0.00013698,2]
[333663140,1722322242126,-500.0,0.00013698,2]
[333663141,1722322242136,-500.0,0.00013698,2]
[333663142,1722322242146,-506.6791589,0.00013698,2]
[333663143,1722322242156,-500.0,0.00013698,2]
[333663144,1722322242168,-245.0154399,0.00013698,2]
[333663145,1722322242177,-522.4802049,0.00013698,2]
[333663146,1722322242187,-500.0,0.00013698,2]
[333663147,1722322242197,-173.22283092,0.00013698,2]
[333663148,1722322242207,-500.0,0.00013698,2]
[333663149,1722322242216,-500.0,0.00013698,2]
[333663150,1722322242226,-500.0,0.00013698,2]
[333663151,1722322242236,-500.0,0.00013698,2]
[333663152,1722322242247,-500.0,0.00013698,2]
[333663153,1722322242261,-500.0,0.00013698,2]
[333663154,1722322242271,-500.0,0.00013698,2]
[333663155,1722322242280,-500.0,0.00013698,2]
[333663156,1722322242291,-500.0,0.00013698,2]
[333663157,1722322242300,-500.0,0.00013698,2]
[333663158,1722322242310,-500.0,0.00013698,2]
[333663159,1722322242319,-500.0,0.00013698,2]
[333663160,1722322242329,-500.0,0.00013698,2]
[333663161,1722322242339,-500.0,0.00013698,2]
[333663162,1722322242349,-500.0,0.00013698,2]
[333663163,1722322242359,-500.0,0.00013698,2]
[333663164,1722322242368,-500.0,0.00013698,2]
[333663165,1722322242377,-501.73054263,0.00013698,2]
[333663166,1722322242387,-555.46099489,0.00013698,2]
[333663167,1722322242396,-508.06723166,0.00013698,2]
[333663168,1722322242405,-564.66925931,0.00013698,2]
[333663169,1722322242415,-500.0,0.00013698,2]
[333663170,1722322242424,-586.2362717,0.00013698,2]
[333663171,1722322242433,-500.0,0.00013698,2]
[333663172,1722322242443,-500.0,0.00013698,2]
[333663173,1722322242452,-396.26933267,0.00013698,2]
[333663174,1722322242461,-505.94068258,0.00013698,2]
[333663175,1722322242471,-500.0,0.00013698,2]
[333663176,1722322242481,-500.0,0.00013698,2]
[333663177,1722322242491,-502.27720564,0.00013698,2]
[333663178,1722322242500,-505.93005352,0.00013698,2]
[333663179,1722322242510,-500.0,0.00013698,2]
[333663180,1722322242521,-510.25349903,0.00013698,2]
[333663181,1722322242532,-599.59,0.00013698,2]
[333663182,1722322242542,-500.0,0.00013698,2]
[333663183,1722322242552,-500.0,0.00013698,2]
[333663184,1722322242562,-501.59045787,0.00013698,2]
[333663185,1722322242571,-500.0,0.00013698,2]
[333663186,1722322242581,-502.80986087,0.00013698,2]
[333663187,1722322242591,-500.0,0.00013698,2]
[333663188,1722322242602,-500.0,0.00013698,2]
[333663189,1722322242612,-503.80834223,0.00013698,2]
[333663190,1722322242623,-506.63773231,0.00013698,2]
[333663191,1722322242634,-246.04909782,0.00013698,2]
[333663192,1722322242643,-500.0,0.00013698,2]
[333663200,1722322242726,-500.0,0.00013698,2]
[333663202,1722322242736,-479.82323604,0.00013698,2]